bitfinex-derivatives/quotes_SOLF0:USTF0_20250522
["timestamp","ask_amount","ask_price","bid_price","bid_amount"]
[1747911314554,5.6025,178.49,178.47,0.04113441]
[1747911314852,0.03834979,178.51,178.47,0.04113441]
[1747911315049,5.64034979,178.51,178.48,5.6027]
[1747911315253,0.03834979,178.51,178.47,0.04113441]
[1747911316548,0.03834979,178.51,178.48,5.6026]
[1747911316961,0.03834979,178.51,178.48,115.86]
[1747911317645,0.03834979,178.51,178.49,5.6022]
[1747911318353,0.03834979,178.51,178.5,5.6021]
[1747911323452,5.6004,178.56,178.52,5.6014]
[1747911323759,7.4766,178.57,178.48,122.97254581]
[1747911323958,1.8766,178.57,178.48,122.97254581]
[1747911324461,0.04091497,178.54,178.51,0.03625194]
[1747911324659,0.04091497,178.54,178.53,5.6012]
[1747911327064,0.04091497,178.54,178.52,122.5614]
[1747911327251,0.04091497,178.54,178.52,116.96]
[1747911327763,0.04091497,178.54,178.53,5.6012]
[1747911331459,2.0186,178.62,178.57,5.5998]
[1747911331660,2.0186,178.62,178.52,124.07254581]
[1747911332269,5.5987,178.61,178.52,124.07254581]
[1747911332466,0.04199903,178.58,178.55,0.04008044]
[1747911332662,0.04199903,178.58,178.56,116.96]
[1747911332861,5.5999,178.57,178.56,116.96]
[1747911333062,5.5999,178.57,178.55,0.04008044]
[1747911333262,0.04199903,178.58,178.55,0.04008044]
[1747911333458,5.6002,178.57,178.55,0.04008044]
[1747911334271,5.6003,178.56,178.55,0.04008044]
[1747911334575,0.04199903,178.58,178.55,0.04008044]
[1747911334771,5.6003,178.56,178.55,0.04008044]
[1747911334963,0.04199903,178.58,178.55,0.04008044]
[1747911335164,5.64169903,178.58,178.55,5.64048044]
[1747911335571,0.04199903,178.58,178.55,0.04008044]
[1747911335872,5.6001,178.57,178.55,0.04008044]
[1747911336669,5.6001,178.57,178.55,5.64058044]
[1747911337174,5.6001,178.57,178.55,0.04008044]
[1747911337373,5.6001,178.57,178.55,5.64058044]
[1747911338273,5.6003,178.56,178.55,0.04008044]
[1747911339881,5.6022,178.5,178.48,116.97734988]
[1747911340377,5.6025,178.49,178.48,116.97734988]
[1747911340875,5.6025,178.49,178.48,0.03734988]
[1747911341773,0.04057042,178.51,178.31,35.87033346]
[1747911341977,116.96,178.51,178.37,130.49183709]
[1747911342375,5.6037,178.45,178.37,130.49183709]
[1747911342582,116.96,178.51,178.37,130.49183709]
[1747911342881,5.6035,178.46,178.43,0.04120493]
[1747911343083,0.03883421,178.47,178.43,0.04120493]
[1747911343585,5.604,178.44,178.43,0.04120493]
[1747911345375,5.6035,178.46,178.43,0.04120493]
[1747911346080,117.01883421,178.47,178.43,0.04120493]
[1747911346469,5.604,178.44,178.43,0.04120493]
[1747911347176,5.6052,178.41,178.38,5.6059]
[1747911347673,3.9389,178.46,178.38,5.6059]
[1747911347886,5.6049,178.42,178.38,5.6059]
[1747911348182,5.64078448,178.42,178.38,5.64261395]
[1747911348382,0.03588448,178.42,178.38,5.64261395]
[1747911348683,5.605,178.41,178.38,5.64261395]
[1747911348878,0.03588448,178.42,178.38,5.64261395]
[1747911349086,0.03588448,178.42,178.39,5.6055]
[1747911349582,5.64058448,178.42,178.39,5.6055]
[1747911349771,5.64058448,178.42,178.38,0.03671395]
[1747911349772,0.03588448,178.42,178.38,0.03671395]
[1747911350181,0.03588448,178.42,178.41,5.605]
[1747911350677,0.03588448,178.42,178.41,122.605]
[1747911359593,117.0,178.49,178.46,5.6033]
[1747911359792,117.0,178.49,178.41,117.0]
[1747911359993,1.965,178.5,178.41,117.0]
[1747911360392,3.8871,178.52,178.42,7.11254581]
[1747911360595,0.04260601,178.49,178.45,0.04253944]
[1747911360795,0.04260601,178.49,178.46,5.6034]
[1747911360994,0.04260601,178.49,178.45,116.98253944]
[1747911361694,5.16947798,178.54,178.46,7.11254581]
[1747911361896,5.16947798,178.54,178.52,5.6013]
[1747911362097,5.16947798,178.54,178.49,116.92]
[1747911362299,5.603,178.48,178.43,5.6041]
[1747911362590,0.04192164,178.47,178.44,0.03549998]
[1747911362799,0.0361293,178.47,178.44,0.03549998]
[1747911364001,5.6034,178.46,178.44,0.03549998]
[1747911364593,0.0361293,178.47,178.44,0.03549998]
[1747911364803,5.6037,178.45,178.44,0.03549998]
[1747911365201,5.6035,178.46,178.44,0.03549998]
[1747911365900,5.6037,178.45,178.44,0.03549998]
[1747911366303,0.0361293,178.47,178.44,0.03549998]
[1747911366904,5.6036,178.46,178.44,0.03549998]
[1747911367204,0.0361293,178.47,178.44,0.03549998]
[1747911367505,5.6037,178.45,178.44,0.03549998]
[1747911368012,13.70728236,178.62,178.44,5.63549998]
[1747911368201,5.16947798,178.55,178.48,7.11254581]
[1747911368404,5.16947798,178.55,178.49,116.94]
[1747911368904,5.16947798,178.55,178.54,5.6009]
[1747911370704,0.03903555,178.56,178.53,116.94]
[1747911371306,0.03903555,178.56,178.55,5.6006]
[1747911372700,116.9,178.65,178.58,5.5995]
[1747911373104,116.9,178.65,178.54,7.11254581]
[1747911373304,5.598,178.64,178.57,5.5999]
[1747911373807,0.04106369,178.62,178.59,0.03802371]
[1747911374502,5.599,178.6,178.59,0.03802371]
[1747911374708,0.04106369,178.62,178.53,223.4]
[1747911374910,116.9,178.61,178.53,223.4]
[1747911375108,5.6002,178.57,178.53,116.94]
[1747911375408,116.9,178.61,178.53,116.94]
[1747911375611,5.6008,178.55,178.53,116.94]
[1747911376915,5.6009,178.54,178.53,116.94]
[1747911377412,0.03734868,178.55,178.53,116.94]
[1747911377618,5.63804868,178.55,178.53,116.94]
[1747911377810,5.63804868,178.55,178.52,0.03857652]
[1747911378012,0.03734868,178.55,178.52,0.03857652]
[1747911378709,5.601,178.54,178.52,0.03857652]
[1747911379416,5.6012,178.53,178.52,0.03857652]
[1747911380412,5.601,178.54,178.52,0.03857652]
[1747911381611,5.6012,178.53,178.52,0.03857652]
[1747911382313,5.601,178.54,178.52,0.03857652]
[1747911382915,5.6012,178.53,178.52,0.03857652]
[1747911392933,5.6033,178.47,178.45,117.4]
[1747911394434,5.64029984,178.48,178.45,117.4]
[1747911394637,0.03799984,178.48,178.45,117.4]
[1747911395334,5.64039984,178.48,178.45,123.0029]
[1747911395634,5.64039984,178.48,178.45,117.4]
[1747911395934,0.03799984,178.48,178.47,5.6026]
[1747911396833,117.4,178.53,178.45,117.4]
[1747911397333,119.3833,178.57,178.45,117.4]
[1747911397935,0.03849664,178.53,178.49,0.03772525]
[1747911398336,5.6015,178.51,178.49,0.03772525]
[1747911398927,5.6011,178.52,178.49,5.63962525]
[1747911399132,0.03849664,178.53,178.49,5.63962525]
[1747911399332,0.03849664,178.53,178.49,0.03772525]
[1747911400240,5.6015,178.51,178.49,0.03772525]
[1747911400440,0.03849664,178.53,178.49,0.03772525]
[1747911401139,5.6016,178.5,178.49,0.03772525]
[1747911401346,0.03849664,178.53,178.45,117.4]
[1747911401538,117.4,178.54,178.45,117.4]
[1747911401740,5.6029,178.47,178.45,117.4]
[1747911402037,5.6029,178.47,178.44,5.6034]
[1747911402332,5.64370201,178.47,178.44,5.64104464]
[1747911403246,5.64370201,178.47,178.45,5.6031]
[1747911403449,0.04080201,178.47,178.45,5.6031]
[1747911404144,0.04080201,178.47,178.46,5.6029]
[1747911406152,0.04080201,178.47,178.44,0.03764464]
[1747911406545,0.04080201,178.47,178.46,5.6029]
[1747911409358,5.64350201,178.47,178.44,0.03764464]
[1747911409551,0.04080201,178.47,178.44,0.03764464]
[1747911410051,5.6032,178.45,178.44,0.03764464]
[1747911410753,5.64350201,178.47,178.44,0.03764464]
[1747911412460,0.04080201,178.47,178.44,5.64104464]
[1747911412755,0.04080201,178.47,178.44,0.03764464]
[1747911413557,0.04080201,178.47,178.45,5.603]
[1747911415055,0.04080201,178.47,178.44,5.64104464]
[1747911415259,0.04080201,178.47,178.44,0.03764464]
[1747911415454,5.6029,178.46,178.44,0.03764464]
[1747911415950,5.64350201,178.47,178.44,0.03764464]
[1747911416857,5.603,178.46,178.44,0.03764464]
[1747911417057,0.04080201,178.47,178.44,0.03764464]
[1747911417460,5.64350201,178.47,178.44,0.03764464]
[1747911417655,0.04080201,178.47,178.44,0.03764464]
[1747911418358,0.04080201,178.47,178.45,5.6032]
[1747911419158,0.04080201,178.47,178.44,5.64104464]
[1747911419664,5.64340201,178.47,178.44,5.64104464]
[1747911420261,5.6029,178.46,178.44,0.03764464]
[1747911421057,5.6032,178.45,178.44,0.03764464]
[1747911421463,3.9753,178.46,178.37,4.82912022]
[1747911422164,5.6052,178.39,178.37,4.82912022]
[1747911422459,0.04168752,178.4,178.37,4.82912022]
[1747911422760,5.6053,178.39,178.37,4.86500365]
[1747911422959,0.04168752,178.4,178.37,4.86500365]
[1747911423261,0.04168752,178.4,178.37,0.03588343]
[1747911423655,5.6054,178.38,178.37,0.03588343]
[1747911425965,117.2,178.39,178.37,0.03588343]
[1747911426963,117.2,178.39,178.37,5.64138343]
[1747911431568,0.04168752,178.4,178.37,5.64138343]
[1747911431963,0.04168752,178.4,178.37,0.03588343]
[1747911433271,5.6054,178.38,178.37,0.03588343]
[1747911434464,0.04168752,178.4,178.37,0.03588343]
[1747911434667,117.26168752,178.4,178.37,0.03588343]
[1747911435473,5.6054,178.38,178.37,0.03588343]
[1747911448176,116.74,178.39,178.37,0.03588343]
[1747911452885,122.3451,178.39,178.37,0.03588343]
[1747911453485,116.74,178.39,178.37,0.03588343]
[1747911453786,5.6054,178.38,178.37,0.03588343]
[1747911455788,122.3452,178.39,178.37,0.03588343]
[1747911456188,116.74,178.39,178.37,0.03588343]
[1747911456384,5.6054,178.38,178.37,0.03588343]
[1747911457395,122.3452,178.39,178.37,0.03588343]
[1747911457995,5.6054,178.38,178.37,0.03588343]
[1747911460298,122.3452,178.39,178.37,0.03588343]
[1747911461796,0.04168752,178.4,178.37,0.03588343]
[1747911462387,0.04168752,178.4,178.39,5.6051]
[1747911469198,0.04168752,178.4,178.37,0.03588343]
[1747911470106,5.6051,178.39,178.37,0.03588343]
[1747911470297,0.04168752,178.4,178.37,0.03588343]
[1747911470596,5.6053,178.39,178.37,0.03588343]
[1747911470803,0.04168752,178.4,178.37,0.03588343]
[1747911471302,5.6053,178.39,178.37,0.03588343]
[1747911471803,5.6054,178.38,178.37,0.03588343]
[1747911473897,5.6054,178.38,178.37,0.00643567]
[1747911478504,115.92,178.39,178.28,4.82912022]
[1747911478705,7.11254581,178.36,178.28,4.82912022]
[1747911479000,119.818,178.35,178.28,4.82912022]
[1747911479201,119.818,178.35,178.26,4.82912022]
[1747911479609,0.04211999,178.32,178.29,0.04130261]
[1747911479907,5.6079,178.3,178.29,0.04130261]
[1747911480612,5.6086,178.28,178.26,4.82912022]
[1747911481301,115.92,178.31,178.26,4.82912022]
[1747911481503,115.92,178.31,178.27,0.03809481]
[1747911481903,5.608,178.3,178.27,0.03809481]
[1747911482103,115.92,178.31,178.27,0.03809481]
[1747911482403,5.6081,178.3,178.27,0.03809481]
[1747911482910,115.92,178.31,178.27,0.03809481]
[1747911483111,5.608,178.3,178.27,0.03809481]
[1747911483310,115.92,178.31,178.27,0.03809481]
[1747911484410,5.6085,178.29,178.27,0.03809481]
[1747911484907,5.6085,178.28,178.27,0.03809481]
[1747911486215,117.9102,178.31,178.24,7.45168056]
[1747911486710,5.6094,178.26,178.24,7.45168056]
[1747911486909,117.9102,178.31,178.24,7.45168056]
[1747911487106,5.6094,178.26,178.24,7.45168056]
[1747911487312,0.0356242,178.29,178.24,7.45168056]
[1747911489517,5.6095,178.25,178.24,7.45168056]
[1747911492315,5.6093,178.26,178.24,7.45168056]
[1747911492518,115.98,178.27,178.24,7.45168056]
[1747911492915,5.6094,178.26,178.24,7.45168056]
[1747911493119,115.98,178.27,178.24,7.45168056]
[1747911493712,5.6095,178.25,178.24,7.45168056]
[1747911494307,115.98,178.27,178.15,484.46]
[1747911494516,0.03614375,178.23,178.15,600.46]
[1747911494712,0.03614375,178.23,178.18,5.6116]
[1747911494913,5.64644375,178.23,178.15,600.46]
[1747911495214,0.03614375,178.23,178.15,600.46]
[1747911495419,0.03614375,178.23,178.16,7.11254581]
[1747911495714,0.03614375,178.23,178.21,5.6105]
[1747911495922,0.03614375,178.23,178.19,116.0]
[1747911496717,0.03614375,178.23,178.21,5.6107]
[1747911496918,0.03614375,178.23,178.13,119.9384]
[1747911497314,5.6107,178.22,178.13,119.9384]
[1747911497515,0.0398651,178.19,178.13,119.9384]
[1747911498114,0.0398651,178.19,178.13,226.5584]
[1747911498315,0.0398651,178.19,178.16,5.6121]
[1747911499918,0.0398651,178.19,178.17,5.6119]
[1747911500619,0.0398651,178.19,178.16,5.6122]
[1747911501220,5.6514651,178.19,178.15,5.6125]
[1747911501517,5.6514651,178.19,178.14,116.02]
[1747911502018,5.6514651,178.19,178.15,5.6125]
[1747911502218,5.6514651,178.19,178.14,116.02]
[1747911502823,5.6514651,178.19,178.16,5.6121]
[1747911503022,0.0398651,178.19,178.14,116.02]
[1747911503721,0.0398651,178.19,178.17,5.6118]
[1747911503913,116.02,178.24,178.14,116.02]
[1747911504224,116.02,178.24,178.21,5.6107]
[1747911504420,117.9831,178.28,178.18,116.08]
[1747911504725,5.6099,178.24,178.2,5.6108]
[1747911504915,5.65239606,178.24,178.2,5.65220392]
[1747911505225,5.65239606,178.24,178.2,0.04140392]
[1747911505525,0.04249606,178.24,178.21,5.6105]
[1747911506215,0.04249606,178.24,178.22,5.6102]
[1747911508220,0.04249606,178.24,178.23,5.6102]
[1747911510326,116.08,178.32,178.27,5.6089]
[1747911510822,116.08,178.32,178.23,116.08]
[1747911511322,0.04219206,178.29,178.27,5.6086]
[1747911511524,0.04219206,178.29,178.26,0.04012401]
[1747911511928,0.04219206,178.29,178.28,5.6086]
[1747911512125,0.04219206,178.29,178.26,0.04012401]
[1747911512430,0.04219206,178.29,178.27,5.6087]
[1747911512727,0.04219206,178.29,178.26,0.04012401]
[1747911513132,0.04219206,178.29,178.27,5.6087]
[1747911514034,0.04219206,178.29,178.26,5.64932401]
[1747911514228,0.04219206,178.29,178.26,0.04012401]
[1747911514632,0.04219206,178.29,178.27,5.6087]
[1747911515836,0.04219206,178.29,178.26,5.64932401]
[1747911516426,0.04219206,178.29,178.26,0.04012401]
[1747911516626,0.04219206,178.29,178.27,5.6089]
[1747911517441,0.04219206,178.29,178.26,5.64932401]
[1747911517737,0.04219206,178.29,178.26,0.04012401]
[1747911518439,0.04219206,178.29,178.26,5.64932401]
[1747911519339,0.04219206,178.29,178.27,5.6088]
[1747911520138,0.04219206,178.29,178.26,5.64932401]
[1747911520742,0.04219206,178.29,178.26,0.04012401]
[1747911521445,0.04219206,178.29,178.28,5.6086]
[1747911524046,0.04219206,178.29,178.28,121.6486]
[1747911529049,116.06,178.36,178.33,5.6069]
[1747911529245,4.0164,178.38,178.33,5.6069]
[1747911529447,5.6063,178.36,178.33,5.6069]
[1747911530145,5.64484614,178.36,178.33,5.64996419]
[1747911530752,0.03854614,178.36,178.34,5.6067]
[1747911531651,0.03854614,178.36,178.35,5.6064]
[1747911532344,5.63854614,178.36,178.19,6.48109982]
[1747911532547,7.13436656,178.3,178.19,6.48109982]
[1747911532851,116.02,178.29,178.19,6.48109982]
[1747911533250,0.04196309,178.26,178.19,6.48109982]
[1747911533751,116.02,178.25,178.21,0.03879892]
[1747911534151,5.6105,178.22,178.21,0.03879892]
[1747911535056,116.02,178.25,178.15,120.26]
[1747911535746,5.6117,178.19,178.15,120.26]
[1747911535957,5.65085463,178.19,178.15,120.29837527]
[1747911537049,0.03915463,178.19,178.15,120.29837527]
[1747911538755,0.03915463,178.19,178.16,5.6123]
[1747911539259,0.03915463,178.19,178.17,5.6118]
[1747911539854,0.03915463,178.19,178.16,5.6123]
[1747911541160,0.03915463,178.19,178.17,5.6121]
[1747911541662,0.03915463,178.19,178.15,120.29837527]
[1747911541956,0.03915463,178.19,178.18,5.6118]
[1747911542155,5.6096,178.25,178.15,120.29837527]
[1747911542753,125.50641685,178.27,178.15,120.29837527]
[1747911542953,125.50641685,178.27,178.15,120.26]
[1747911543151,0.03946479,178.23,178.19,0.04167491]
[1747911544062,0.03946479,178.23,178.21,5.6106]
[1747911544564,0.03946479,178.23,178.22,5.6105]
[1747911551375,6.479e-05,178.23,178.22,5.6105]
[1747911553280,6.479e-05,178.23,178.22,67.6105]
[1747911553582,6.479e-05,178.23,178.22,174.2305]
[1747911558681,120.3,178.35,178.22,168.62]
[1747911559082,5.6068,178.34,178.22,168.62]
[1747911559283,120.3,178.35,178.22,168.62]
[1747911559685,0.03570489,178.3,178.29,5.6083]
[1747911559983,0.03954485,178.31,178.28,120.28]
[1747911560283,0.03954485,178.31,178.3,5.608]
[1747911561085,0.03954485,178.31,178.28,120.28]
[1747911562587,0.03954485,178.31,178.29,5.6081]
[1747911562886,0.03954485,178.31,178.28,120.28]
[1747911563387,0.03954485,178.31,178.3,5.608]
[1747911564189,4.485e-05,178.31,178.3,5.608]
[1747911568484,4.485e-05,178.31,178.3,112.188]
[1747911570488,4.485e-05,178.31,178.3,174.188]
[1747911570692,5.6049,178.4,178.37,5.6058]
[1747911571589,5.6047,178.41,178.38,5.6055]
[1747911571782,0.0404131,178.39,178.38,5.6055]
[1747911577688,5.6062,178.36,178.35,0.04183387]
[1747911584096,5.6062,178.36,178.35,3.387e-05]
[1747911584298,5.6081,178.3,178.29,118.44]
[1747911586198,5.64490912,178.31,178.29,118.44]
[1747911586802,5.608,178.3,178.29,118.44]
[1747911587397,0.03700912,178.31,178.29,118.44]
[1747911588204,5.608,178.3,178.29,118.44]
[1747911589203,5.6084,178.29,178.28,0.04011291]
[1747911589898,0.03700912,178.31,178.28,0.04011291]
[1747911590098,5.6082,178.3,178.28,0.04011291]
[1747911591893,5.6084,178.29,178.28,0.04011291]
[1747911600515,0.03700912,178.31,178.23,5.6102]
[1747911600707,117.28,178.32,178.23,5.6102]
[1747911601013,117.28,178.32,178.21,117.28]
[1747911601416,0.0375923,178.28,178.25,0.04185278]
[1747911601604,5.6093,178.26,178.25,0.04185278]
[1747911603516,0.0375923,178.28,178.25,0.04185278]
[1747911603816,0.0375923,178.28,178.25,117.32185278]
[1747911604721,0.0375923,178.28,178.27,5.609]
[1747911605719,5.18641685,178.34,178.3,5.6079]
[1747911605909,5.18641685,178.34,178.25,117.28]
[1747911606112,5.6076,178.32,178.25,117.28]
[1747911606520,5.6074,178.33,178.25,117.28]
[1747911606821,0.04133216,178.31,178.3,5.608]
[1747911607010,0.04133216,178.31,178.27,0.0359782]
[1747911607620,0.04133216,178.31,178.29,5.6082]
[1747911608123,5.64913216,178.31,178.29,5.6082]
[1747911608420,0.04133216,178.31,178.27,0.0359782]
[1747911608821,5.6087,178.29,178.27,0.0359782]
[1747911609221,5.6081,178.3,178.27,0.0359782]
[1747911609422,0.04133216,178.31,178.27,0.0359782]
[1747911609923,0.04133216,178.31,178.29,5.6083]
[1747911610221,0.04133216,178.31,178.27,0.0359782]
[1747911610421,5.6087,178.28,178.27,0.0359782]
[1747911611725,5.6,178.28,178.21,117.28]
[1747911611924,1.9735,178.29,178.18,1.8668]
[1747911612525,0.0373521,178.25,178.22,0.0371436]
[1747911613427,5.6103,178.23,178.22,0.0371436]
[1747911614425,0.0373521,178.25,178.22,0.0371436]
[1747911614625,0.0373521,178.25,178.22,5.6475436]
[1747911615022,0.0373521,178.25,178.22,0.0371436]
[1747911615222,0.0373521,178.25,178.24,5.6099]
[1747911615920,5.6092,178.27,178.24,5.6099]
[1747911616122,5.6094,178.26,178.23,7.5877]
[1747911616725,5.6091,178.27,178.24,5.6099]
[1747911616918,5.64940033,178.27,178.24,5.6099]
[1747911617125,0.04030033,178.27,178.23,1.9775]
[1747911617323,5.64930033,178.27,178.24,5.6097]
[1747911617624,0.04030033,178.27,178.23,1.9775]
[1747911617826,5.6094,178.26,178.23,7.5875]
[1747911618429,0.04030033,178.27,178.23,1.9775]
[1747911618931,0.04030033,178.27,178.24,5.6099]
[1747911619133,0.04030033,178.27,178.22,0.0371436]
[1747911619434,5.6103,178.23,178.22,0.0371436]
[1747911620733,0.04030033,178.27,178.22,0.0371436]
[1747911620936,0.04030033,178.27,178.22,1.9517436]
[1747911622247,5.6101,178.24,178.22,1.9517436]
[1747911623133,0.04030033,178.27,178.22,1.9517436]
[1747911624339,5.64940033,178.27,178.24,5.6097]
[1747911625739,0.04030033,178.27,178.22,1.9517436]
[1747911626244,5.6103,178.23,178.22,1.9517436]
[1747911626640,0.04030033,178.27,178.22,1.9517436]
[1747911626937,0.04030033,178.27,178.22,7.5622436]
[1747911627137,0.04030033,178.27,178.22,1.9517436]
[1747911627439,5.6094,178.26,178.23,5.6102]
[1747911627745,0.04030033,178.27,178.22,1.9517436]
[1747911628038,0.04030033,178.27,178.23,5.6102]
[1747911628738,5.6095,178.26,178.23,5.6102]
[1747911629439,0.04030033,178.27,178.22,7.5621436]
[1747911629647,0.04030033,178.27,178.22,0.0371436]
[1747911630549,5.64940033,178.27,178.24,5.6098]
[1747911631250,5.64940033,178.27,178.25,5.6096]
[1747911631449,0.04030033,178.27,178.25,5.6096]
[1747911631650,0.04030033,178.27,178.26,5.6093]
[1747911631947,0.04030033,178.27,178.22,0.0371436]
[1747911631948,5.18641685,178.3,178.24,231.3691057]
[1747911632154,2.08131685,178.3,178.29,5.6084]
[1747911632543,6.87448526,178.33,178.28,117.62]
[1747911632743,0.04146103,178.32,178.29,0.04115357]
[1747911632951,0.04146103,178.32,178.29,2.00585357]
[1747911633355,0.04146103,178.32,178.31,5.6077]
[1747911633951,6.87448526,178.33,178.32,5.6074]
[1747911634253,10.3117279,178.35,178.32,117.62]
[1747911634458,10.3117279,178.35,178.34,5.6068]
[1747911634857,127.9317279,178.43,178.32,117.62]
[1747911635158,0.04127494,178.39,178.33,0.04031317]
[1747911635547,0.04127494,178.39,178.38,5.6055]
[1747911637259,10.3117279,178.43,178.37,0.03669283]
[1747911637667,10.3117279,178.43,178.42,5.6043]
[1747911638767,0.03579775,178.44,178.43,5.604]
[1747911639063,10.3117279,178.55,178.41,224.21724938]
[1747911639265,10.3117279,178.55,178.43,7.1491057]
[1747911639457,10.3117279,178.55,178.41,224.18]
[1747911639458,10.3117279,178.55,178.51,5.6012]
[1747911639769,10.3117279,178.55,178.51,117.6]
[1747911640065,5.6009,178.53,178.51,117.6]
[1747911640261,0.03582557,178.54,178.5,0.03737787]
[1747911640465,0.03926855,178.54,178.5,0.03737787]
[1747911640870,5.6015,178.51,178.5,0.03737787]
[1747911650371,0.03926855,178.54,178.5,0.03737787]
[1747911651379,0.03926855,178.54,178.51,5.6011]
[1747911651674,0.03926855,178.54,178.5,0.03737787]
[1747911651975,0.03926855,178.54,178.51,5.6011]
[1747911652470,0.03926855,178.54,178.51,5.6012]
[1747911652670,0.03926855,178.54,178.5,0.03737787]
[1747911653083,0.03926855,178.54,178.51,5.6014]
[1747911653576,0.03926855,178.54,178.5,0.03737787]
[1747911654276,5.6011,178.53,178.5,0.03737787]
[1747911654773,5.6011,178.53,178.5,5.63907787]
[1747911655074,5.6011,178.53,178.5,0.03737787]
[1747911655571,5.63986855,178.54,178.5,0.03737787]
[1747911655977,0.03926855,178.54,178.5,0.03737787]
[1747911656977,0.03926855,178.54,178.52,5.6011]
[1747911659381,0.03926855,178.54,178.51,5.6014]
[1747911659580,5.63986855,178.54,178.51,5.6014]
[1747911660483,5.63986855,178.54,178.5,5.63907787]
[1747911660784,5.6009,178.53,178.5,5.63907787]
[1747911660981,0.03926855,178.54,178.5,5.63907787]
[1747911661482,5.63986855,178.54,178.51,5.6014]
[1747911662284,5.6008,178.53,178.5,5.63897787]
[1747911662480,0.03926855,178.54,178.5,0.03737787]
[1747911664287,0.03926855,178.54,178.53,5.6008]
[1747911664582,0.03926855,178.54,178.5,0.03737787]
[1747911664788,0.03926855,178.54,178.51,5.6013]
[1747911664987,0.03926855,178.54,178.5,0.03737787]
[1747911665388,5.63996855,178.54,178.5,5.63887787]
[1747911665588,0.03926855,178.54,178.5,0.03737787]
[1747911666679,0.03926855,178.54,178.52,5.6009]
[1747911666875,0.03926855,178.54,178.5,0.03737787]
[1747911667988,0.03926855,178.54,178.51,5.6014]
[1747911668191,0.03926855,178.54,178.5,0.03737787]
[1747911669377,0.03926855,178.54,178.52,5.6011]
[1747911669986,0.03926855,178.54,178.51,5.6014]
[1747911670289,0.03926855,178.54,178.5,0.03737787]
[1747911671391,0.03926855,178.54,178.52,5.6009]
[1747911671991,0.03926855,178.54,178.53,5.6008]
[1747911674589,0.03926855,178.54,178.5,0.03737787]
[1747911674788,5.63976855,178.54,178.5,0.03737787]
[1747911674987,0.03926855,178.54,178.52,5.6011]
[1747911675387,0.03926855,178.54,178.5,0.03737787]
[1747911675388,5.63976855,178.54,178.5,0.03737787]
[1747911675994,5.63976855,178.54,178.51,5.6013]
[1747911676196,5.6008,178.53,178.51,5.6013]
[1747911676489,0.03926855,178.54,178.51,5.6013]
[1747911676888,5.63976855,178.54,178.51,5.6013]
[1747911678698,0.03926855,178.54,178.52,5.6011]
[1747911679103,0.03926855,178.54,178.5,119.63737787]
[1747911679603,5.6009,178.53,178.5,125.23887787]
[1747911679798,0.03926855,178.54,178.5,0.03737787]
[1747911680191,5.6015,178.51,178.5,0.00645812]
[1747911680396,2.048,178.53,178.42,610.86216287]
[1747911680603,5.6032,178.46,178.43,5.6038]
[1747911680800,4.1097,178.53,178.42,124.35996287]
[1747911681201,5.6032,178.46,178.42,129.96406287]
[1747911681411,0.03691558,178.46,178.42,130.00305413]
[1747911681598,0.03691558,178.46,178.42,4.79895413]
[1747911682998,5.64021558,178.46,178.42,10.40315413]
[1747911683199,5.64021558,178.46,178.42,0.03899126]
[1747911683607,0.03691558,178.46,178.44,5.6035]
[1747911683905,0.03691558,178.46,178.42,0.03899126]
[1747911684209,0.03691558,178.46,178.44,5.6034]
[1747911684400,0.03691558,178.46,178.42,0.03899126]
[1747911684804,0.03691558,178.46,178.45,5.6033]
[1747911685907,0.03691558,178.46,178.44,125.2235]
[1747911686115,0.03691558,178.46,178.44,119.62]
[1747911686907,0.03691558,178.46,178.45,5.6033]
[1747911690218,0.03691558,178.46,178.44,125.2236]
[1747911690423,0.03691558,178.46,178.44,119.62]
[1747911691228,0.03691558,178.46,178.45,5.6033]
[1747911693531,0.03691558,178.46,178.44,125.2235]
[1747911694337,0.03691558,178.46,178.45,5.6033]
[1747911696234,0.03691558,178.46,178.44,125.2236]
[1747911696630,0.03691558,178.46,178.44,119.62]
[1747911697634,0.03691558,178.46,178.45,5.6033]
[1747911705545,6.86793639,178.55,178.44,233.22055352]
[1747911705838,12.46823639,178.55,178.45,1.8898]
[1747911706043,6.86793639,178.55,178.46,224.54]
[1747911706242,124.92793639,178.58,178.45,1.8898]